Cogmind - Beta 17.1 @@@ ROGUE MODE // 2026.09.15 @ 22:50:51 Player: MolePlayingNice Result: Destroyed by Executioner with Helical Railgun Performance ------------- Evolutions (9) 4500 Regions Visited (16) 3200 Robots Destroyed (551) 2755 Value Destroyed (35895) 35895 Prototype IDs (79) 1580 Alien Tech Used (15) 3000 Bonus (46639) 46639 TOTAL SCORE: 97569 Bonus ------- Triggered High Security 1000 High Alert Combat Kills 23357 Follower Combat Kills 3184 Prayed to X0-1V1 5000 Major X0-1V1 Interference 12650 Subatomizer Sterilization 3000 Registered with UFD 300 Met Zhirov 300 Scanned by Researcher 500 Friendly Fire -2652 Cogmind --------- Core Integrity 0/1260 Matter 266/300 Energy 400/400 System Corruption 0% +Membrane Temperature Cool (0) +ITN Movement Walking (120) Location -1/Command Parts ------- > --- POWER (3) -------- Micro Antimatter Reactor > --- PROPULSION (5) --- Centrium Leg Centrium Leg High-density Centrium Leg > --- UTILITY (16) ----- Large Storage Unit Advanced Targeting Computer Graphene Brace > --- WEAPON (2) ------- Chaos Jack > --- INVENTORY (15) --- Light Quantum Reactor Enhanced Multireflex Exoskeleton Centrium Leg Advanced Matter Compressor (400) Improved Force Field Advanced Force Field Compact HERF Cannon Enhanced Nova Cannon Improved Potential Cannon Containment Facilitator (1) CPS Tube (2) Botcube Peak State ------------ > --- POWER ------------ Light Quantum Reactor Light Quantum Reactor Improved Quantum Reactor > --- PROPULSION ------- High-density Centrium Leg High-density Centrium Leg High-density Centrium Leg High-density Centrium Leg High-density Centrium Leg > --- UTILITY ---------- Advanced Power Amplifier Experimental Heat Sink Experimental Cooling System Large Storage Unit Advanced Targeting Computer Advanced Target Analyzer Experimental Core Analyzer Experimental Reaction Control System Advanced Phase Shifter Centrium Light Armor Plating SHELL Armor Graphene Brace System Mapper X0-1V1's Piety Tracker > --- WEAPON ----------- Compact HERF Cannon Enhanced Nova Cannon > --- INVENTORY -------- Light Quantum Reactor Enhanced Biometal Leg Improved Energy Well Improved Energy Well Advanced Sensor Array Advanced Particle Accelerator Advanced Phase Shifter Layered Heavy Armor Plating Long-range Tractor Beam Subatomic Replicator Improved Potential Cannon Ragnarok Missile Launcher CPS Tube [Rating: 237] Favorites ----------- Power Heavy Antimatter Reactor Engine Improved Deuterium Engine Power Core Cooled Fission Core Reactor Heavy Antimatter Reactor Propulsion High-density Centrium Leg Treads Light Treads Leg High-density Centrium Leg Wheel Armored Wheel Utility Large Storage Unit Device Experimental Cooling System Storage Large Storage Unit Processor Advanced Targeting Computer Hackware Advanced Hacking Suite Protection Wyrmscale Artifact Phase Armor Weapon Enhanced Nova Cannon Energy Gun Beam Rifle Energy Cannon Enhanced Nova Cannon Ballistic Gun Autogun Launcher Ragnarok Missile Launcher Special Weapon Improved Remote Datajack Slashing Weapon Makeshift Sword Special Melee Weapon Chaos Jack Build | -11 -10 -10 -7 -5 -4 -4 -4 -4 -3 -3 -3 -3 -2 -2 -1 -1 ------- Run | Yrd Mat Sub Scr Fac Fac Upp Upp Zhi Pro Res Qua Sec Res Tes Acc Com Slots Evolved 16 | . . . . 10 2 . . . . 2 . . 2 . . . Power 1 | . . . . 1 . . . . . . . . . . . . Propulsion 2 | . . . . 3 . . . . . . . . -1 . . . Utility 14 | . . . . 6 2 . . . . 2 . . 4 . . . Weapon -1 | . . . . . . . . . . . . . -1 . . . Parts Attached 193 | . 8 . 14 20 11 18 2 4 . 2 11 15 5 8 54 21 Power 33 | . 1 . 4 1 3 3 . 1 . . 1 5 1 . 10 3 Engine 5 | . 1 . 3 1 . . . . . . . . . . . . Core 3 | . . . 1 . . . . . . . . 2 . . . . Reactor 25 | . . . . . 3 3 . 1 . . 1 3 1 . 10 3 Propulsion 29 | . 2 . 4 5 2 6 . . . . 1 2 . . 3 4 Treads 5 | . 2 . 1 . . . . . . . . . . . . 2 Leg 20 | . . . . 4 2 6 . . . . 1 2 . . 3 2 Wheel 4 | . . . 3 1 . . . . . . . . . . . . Hover . | . . . . . . . . . . . . . . . . . Flight . | . . . . . . . . . . . . . . . . . Utility 87 | . 2 . 2 9 6 5 1 3 . 1 7 5 4 4 29 9 Device 46 | . . . 1 4 1 2 1 1 . 1 4 2 2 . 20 7 Storage 7 | . 1 . 1 . . . . 1 . . . . . 1 3 . Processor 13 | . . . . 2 1 . . . . . 1 . 2 1 4 2 Hackware 4 | . . . . . 1 . . . . . . 1 . 1 1 . Protection 15 | . 1 . . 3 3 3 . 1 . . 1 1 . 1 1 . Artifact 2 | . . . . . . . . . . . 1 1 . . . . Weapon 44 | . 3 . 4 5 . 4 1 . . 1 2 3 . 4 12 5 Energy Gun 1 | . 1 . . . . . . . . . . . . . . . Energy Cannon 22 | . . . . 2 . 4 . . . 1 2 2 . 3 6 2 Ballistic Gun 8 | . 2 . 2 1 . . . . . . . . . 1 2 . Ballistic Cannon . | . . . . . . . . . . . . . . . . . Launcher 7 | . . . 1 . . . 1 . . . . . . . 4 1 Special Weapon 3 | . . . . 2 . . . . . . . 1 . . . . Impact Weapon . | . . . . . . . . . . . . . . . . . Slashing Weapon 1 | . . . 1 . . . . . . . . . . . . . Piercing Weapon . | . . . . . . . . . . . . . . . . . Special Melee Weapon 2 | . . . . . . . . . . . . . . . . 2 Unidentified Prototypes 52 | . . . 1 . 2 1 . 4 . . 2 10 1 5 20 6 Corrupted Parts 1 | . . . . . . . . . . . . 1 . . . . System Corruption 7 | . . . . . . . . . . . . 7 . . . . Parts Lost 45 | . . . 1 . . . . . . . 1 . . . 14 29 Power 11 | . . . 1 . . . . . . . 1 . . . 4 5 Propulsion 3 | . . . . . . . . . . . . . . . . 3 Utility 25 | . . . . . . . . . . . . . . . 8 17 Weapon 6 | . . . . . . . . . . . . . . . 2 4 Highest Loss Streak 20 | . . . 1 . . . . . . . 1 . . . 8 20 To Critical Strikes . | . . . . . . . . . . . . . . . . . Average Backups 14 | 6 9 15 17 14 15 14 14 13 14 14 14 14 14 14 13 12 Power . | 1 . . . . . . 1 1 1 1 . . 2 1 1 2 Propulsion 1 | 4 3 3 4 . . 1 2 2 2 2 2 1 1 . . . Utility 4 | . 2 4 3 2 8 7 7 6 6 5 4 4 3 5 5 3 Weapon 4 | 1 3 7 7 7 4 3 3 3 3 4 3 2 2 2 3 3 Tool/Special . | . . . . . . . . . . . . . . . . . Unused Backups 73 | . 11 . 12 6 . 11 . . . . 1 6 2 4 14 6 Power 7 | . 1 . . . . . . . . . . 2 1 . 2 1 Propulsion 11 | . 4 . 1 . . . . . . . 1 . . . 3 2 Utility 20 | . 2 . 3 . . 8 . . . . . . 1 1 4 1 Weapon 29 | . 4 . 6 6 . 3 . . . . . 2 . 2 5 1 Tool/Special 6 | . . . 2 . . . . . . . . 2 . 1 . 1 Average Slot Usage (%) 88 | . 99 100 95 93 88 88 89 80 94 87 86 87 87 87 87 76 Engine 3 | . 14 14 13 10 4 . . . . . . . . . . . Core 1 | . . . . . . . . . . . . 5 3 3 1 . Reactor 6 | . . . . . 5 10 10 10 10 9 8 5 7 7 8 9 Treads 2 | . 26 28 6 . . . . . . . . . . . . 1 Leg 16 | . 1 . . 19 13 24 26 26 26 22 21 23 19 19 19 14 Wheel 2 | . . . 16 6 6 . . . . . . . . . . . Device 17 | . . . . 18 9 12 15 15 15 20 17 16 19 19 26 21 Storage 5 | . 14 14 14 5 5 5 5 5 5 4 4 4 3 3 4 6 Processor 7 | . . . . 9 13 7 5 5 5 4 4 4 10 14 11 11 Hackware 1 | . . . . . 4 . . . . . . 3 2 . 1 . Protection 9 | . 13 14 13 6 10 15 15 17 21 16 17 9 10 10 3 2 Energy Cannon 6 | . . . . 5 10 9 9 . 10 6 10 12 6 6 6 4 Ballistic Gun 4 | . 25 28 27 4 . . . . . . . . . . . . Peak Build Rating 237 | 6 12 12 41 90 109 180 169 181 182 201 216 212 219 219 237 231 Average Rating 161 | 6 10 12 22 86 99 155 168 156 181 193 195 196 214 212 224 199 On Entrance 129 | 6 6 12 12 41 85 99 168 168 181 181 200 190 193 213 216 231 Avg Prop Armor Cover (%) 10 | . . . . 10 7 6 . . . . . . . . . 16 Naked Turns . | . . . . . . . . . . . . . . . . . Heaviest Build 165 | 11 38 38 66 89 98 135 127 139 139 142 165 163 159 158 159 158 Greatest Support 192 | 20 40 40 40 64 40 160 160 160 160 160 160 192 160 160 160 158 Greatest Overweight (x) 5 | . . . 2 5 3 3 . . . 1 1 . . . . 1 Average Overweight (x) . | . . . 1 3 2 . . . . . . . . . . . Largest Inventory Capacity 20 | 8 15 15 20 20 15 15 15 15 15 15 15 15 15 15 15 15 Average Capacity 15 | 8 10 15 17 15 15 15 15 15 15 15 15 15 15 15 15 15 Most Carried 20 | 6 15 15 20 20 15 15 15 15 15 15 15 15 15 15 15 15 Average Carried 14 | 6 9 15 17 14 14 14 15 14 15 14 14 14 14 14 14 14 Final Capacity 20 | 8 15 15 20 15 15 15 15 15 15 15 15 15 15 15 15 15 Final Carried 19 | 6 15 15 19 15 15 15 15 15 15 14 15 15 15 15 15 14 Class Distribution -------------------- 63% | Scavenger-Mutant 27% | Mutant 4% | Scavenger-Skirmisher Dominant Class ---------------- Mutant | -10/Materials Mutant | -10/Subcaves Mutant | -7/Scraptown Mutant | -5/Factory Scavenger-Mutant | -4/Factory Scavenger-Mutant | -4/Upper Caves Scavenger-Mutant | -4/Upper Caves Scavenger-Mutant | -4/Zhirov Scavenger-Mutant | -3/Proximity Caves Scavenger-Mutant | -3/Research Scavenger-Mutant | -3/Quarantine Scavenger-Skirmisher | -3/Section 7 Scavenger-Mutant | -2/Research Scavenger-Mutant | -2/Testing Scavenger-Mutant | -1/Access Scavenger-Mutant | -1/Command Resources | -11 -10 -10 -7 -5 -4 -4 -4 -4 -3 -3 -3 -3 -2 -2 -1 -1 ----------- Run | Yrd Mat Sub Scr Fac Fac Upp Upp Zhi Pro Res Qua Sec Res Tes Acc Com Matter Collected 9066 | 200 236 . 260 708 153 304 370 . . 344 598 939 315 330 4028 281 Remotely . | . . . . . . . . . . . . . . . . . Salvage Created 31926 | . 252 . 55 430 258 1279 523 . . 895 1990 2496 2863 3602 12547 4736 Parts 1138 | . 14 . . 20 10 41 24 . . 42 87 97 129 135 399 140 Haulers Intercepted 1 | . . . . . . . . . . . . . 1 . . . Recyclers Shooed 9 | . . . . 1 . . . . . . . . 1 2 4 1 Parts Field Recycled . | . . . . . . . . . . . . . . . . . Retrieved Matter . | . . . . . . . . . . . . . . . . . Parts Self-Destructed 29 | . . . . . . 9 20 . . . . . . . . . Prevented 8 | . . . . . . 8 . . . . . . . . . . Parts Restored . | . . . . . . . . . . . . . . . . . Kills | -11 -10 -10 -7 -5 -4 -4 -4 -4 -3 -3 -3 -3 -2 -2 -1 -1 ------- Run | Yrd Mat Sub Scr Fac Fac Upp Upp Zhi Pro Res Qua Sec Res Tes Acc Com Combat Hostiles Destroyed 477 | . 8 . 1 5 1 8 16 . 2 13 33 31 33 40 174 112 Guns 30 | . 8 . . 2 . . . . . . . . . . 20 . Cannons 180 | . . . . 3 1 6 4 . . 6 19 19 15 24 63 20 AOE 160 | . . . 1 . . . 10 . 2 4 6 . 5 . 51 81 Classes Destroyed 27 | . 2 . 1 5 2 2 1 . 1 2 2 1 2 1 5 . Worker 8 | . . . . 1 . . . . . . . . . . 4 3 Builder 8 | . . . . 1 . . . . . . . . . 1 6 . Hauler 1 | . . . . . . . . . . . . . 1 . . . Recycler 12 | . . . . 2 1 . . . . 1 . . 1 3 3 1 Carrier 6 | . . . . . . . . . . . . . . . 5 1 Mechanic 18 | . . . . . . . . . . . . . . . 9 9 Operator 5 | . . . . . 1 . . . . . . . 2 1 1 . Drone 2 | . . . . . . . . . 2 . . . . . . . Watcher 12 | . . . . . . . . . . 1 . 3 2 1 5 . Swarmer 58 | . 3 . . 1 . 1 10 . . 4 4 4 5 4 17 5 Saboteur 12 | . . . . 1 . . . . . . . . . 1 4 6 Grunt 172 | . 5 . . . . 4 3 . . 3 15 8 9 16 63 46 Brawler 16 | . . . . . . . . . . . . . . . 11 5 Duelist 23 | . . . . . . . . . . 1 . . . 2 11 9 Protector 12 | . . . . . . . . . . . . . . . 5 7 Researcher 3 | . . . . . . . . . . . 1 1 . 1 . . Sentry 30 | . . . . . 1 1 . . . 1 2 4 3 . 17 1 Specialist 8 | . . . . . . . . . . . . . . 3 . 5 Hunter 41 | . . . . . . 2 . . . 2 2 2 7 4 10 12 Programmer 76 | . . . . 3 . . 2 . . 2 9 9 7 10 22 12 Heavy 3 | . . . . . . . . . . . . . 1 . 1 1 Behemoth 3 | . . . . . . . 1 . . . . . 1 . 1 . S7 Guard 2 | . . . . . . . . . . . . 2 . . . . Investigator 2 | . . . . . . . . . . . . . . . 1 1 Striker 7 | . . . . . . . . . . . . . . . 6 1 Executioner 12 | . . . . . . . . . . . . 2 . . 6 4 Alpha 7 1 | . . . . . . . . . . . 1 . . . . . Scrapper 1 | . . . 1 . . . . . . . . . . . . . Dragon 1 | . . . . . . 1 . . . . . . . . . . Best Kill Streak 44 | . 3 . 1 3 1 3 10 . 2 7 8 8 9 8 39 44 Combat Bots Only 42 | . 3 . 1 1 1 3 10 . 2 7 8 7 9 8 31 42 Max Kills in Single Turn 13 | . 1 . 1 1 1 1 5 . 1 4 2 2 5 1 6 13 Gunslinging . | . . . . . . . . . . . . . . . . . Exploded 8 | . . . 1 . . . 5 . 1 4 2 . 5 . 6 8 Melee . | . . . . . . . . . . . . . . . . . Uniques/NPCs Destroyed . | . . . . . . . . . . . . . . . . . Combat | -11 -10 -10 -7 -5 -4 -4 -4 -4 -3 -3 -3 -3 -2 -2 -1 -1 -------- Run | Yrd Mat Sub Scr Fac Fac Upp Upp Zhi Pro Res Qua Sec Res Tes Acc Com Hostile Shots Fired 2371 | . 30 . 19 33 8 70 36 . . 47 171 165 175 136 775 706 Missed 830 | . 5 . 5 11 3 26 13 . . 13 49 59 62 42 282 260 Hits 1541 | . 25 . 14 22 5 44 23 . . 34 122 106 113 94 493 446 Melee 47 | . . . . . . . . . . 1 . . . 3 23 20 Projectile 1494 | . 25 . 14 22 5 44 23 . . 33 122 106 113 91 470 426 AOE 2 | . . . . . . . . . . . . . . 1 1 . Critical Strikes 85 | . 1 . 1 1 1 1 . . . 4 7 10 3 4 19 33 Actively Blocked 49 | . . . . . . . . . . . . . 2 1 13 33 Part Disruptions 12 | . . . . 1 . . . . . . . . . 1 3 7 Actively Blocked 2 | . . . . . . . . . . . . . . 1 1 . Damage Taken 27051 | . 296 . 391 545 103 759 475 . . 550 2687 1779 1638 1090 7302 9436 Core 2150 | . 52 . 121 . 21 18 . . . 20 86 120 92 43 478 1099 Absorbed by Shields 11513 | . . . . . . . . . . . . 487 1172 1139 6453 2262 Reduced by Siege Mode 439 | . . . . . . . . . . . . . . . . 439 Redirected to Shielding 309 | . . . . . . 10 . . . . 91 20 112 49 27 . Ignored by Resistances 2277 | . . . . 12 3 68 22 . . 29 128 155 256 75 763 766 Regen/Repaired (Parts) 11238 | . . . . . . 194 127 52 . 307 1651 2291 1105 772 3820 919 Core Remaining (%) 78 | 100 . . 30 100 . . . . 100 . . 52 . 88 . . Volleys Fired 1268 | . 26 . 9 38 14 68 17 . 2 51 133 179 111 136 362 122 Largest 5 | . 2 . 2 2 2 2 2 . 1 1 5 1 1 1 1 2 Hottest 490 | . 76 . 58 113 170 240 240 . 70 120 490 120 120 120 200 200 Shots Fired 1376 | . 52 . 15 58 27 88 27 . 2 51 138 178 111 137 366 126 Gun 117 | . 52 . 12 21 . . . . . . . . . . 32 . Cannon 1199 | . . . . 35 27 87 23 . . 50 133 178 110 137 321 98 Launcher 57 | . . . 3 . . . 4 . 2 1 5 . 1 . 13 28 Special 3 | . . . . 2 . 1 . . . . . . . . . . Kinetic 108 | . 43 . 12 21 . . . . . . . . . . 32 . Thermal 712 | . 9 . . 35 27 39 23 . . 39 76 98 59 59 179 69 Explosive 56 | . . . 3 . . . 4 . 2 1 5 . 1 . 12 28 Electromagnetic 496 | . . . . . . 48 . . . 11 57 80 51 78 142 29 Robot Hit Streak 37 | . 4 . 4 15 13 24 14 . . 21 32 28 24 37 26 23 Robot Miss Streak 11 | . 4 . 11 2 2 5 1 . . 2 4 2 1 2 3 2 Penetration Max 1 | . . . 1 1 . . . . . . . . . . 1 . Secondary Targets . | . . . . . . . . . . . . . . . . . Capacitor 832 | . . . . . . . . . . 50 121 178 110 137 236 . Shots Hit Robots 962 | . 28 . 9 43 19 61 16 . . 26 86 115 76 89 292 102 Core Hits 710 | . 12 . 8 15 9 22 14 . 2 12 44 31 42 47 235 217 Critical Kills 39 | . . . . . 1 1 2 . . 1 1 1 1 1 27 3 Critical Parts Destroyed 19 | . . . . . . . . . . . . . . . 19 . Critical Strikes 67 | . 1 . . . 1 1 2 . . 1 1 2 2 2 49 5 Burn 1 | . 1 . . . . . . . . . . . . . . . Meltdown 16 | . . . . . 1 1 2 . . 1 1 1 1 1 4 3 Destroy 43 | . . . . . . . . . . . . . . . 43 . Corrupt 6 | . . . . . . . . . . . . 1 1 1 2 1 Phase 1 | . . . . . . . . . . . . . . . . 1 Melee Attacks 19 | . . . 2 . . . . . . . . . . . . 17 Impact . | . . . . . . . . . . . . . . . . . Slashing 2 | . . . 2 . . . . . . . . . . . . . Piercing 17 | . . . . . . . . . . . . . . . . 17 Sneak Attacks 1 | . . . . . . . . . . . . . . . . 1 Combat Hostiles . | . . . . . . . . . . . . . . . . . Follow-up Attacks . | . . . . . . . . . . . . . . . . . Damage Inflicted 125445 | . 435 . 219 1143 577 1115 2353 . 271 2166 6497 5576 5733 5599 36271 57490 Guns 1564 | . 429 . 147 461 . . . . . . . . . . 527 . Cannons 74149 | . . . . 682 577 1115 871 . . 1614 4373 5576 4896 5530 17618 31297 Explosions 49537 | . . . 72 . . . 1482 . 271 552 2109 . 798 . 18104 26149 Melee 22 | . . . . . . . . . . . . . . . . 22 Ramming 173 | . 6 . . . . . . . . . 15 . 39 69 22 22 Kinetic 1505 | . 370 . 147 461 . . . . . . . . . . 527 . Thermal 74781 | . 59 . . 682 577 815 871 . . 1013 2155 3049 2261 1758 22185 39356 Explosive 29644 | . . . 72 . . . 1482 . 271 552 2109 . 786 . 7457 16915 Electromagnetic 19320 | . . . . . . 300 . . . 601 2218 2527 2647 3772 6080 1175 Impact . | . . . . . . . . . . . . . . . . . Slashing . | . . . . . . . . . . . . . . . . . Piercing 22 | . . . . . . . . . . . . . . . . 22 Highest Corruption 27 | . 4 6 . 22 . 26 27 27 27 . 3 10 . . 6 . Average Corruption 9 | . 3 4 . 11 . 10 26 27 27 . 2 6 . . 5 . Corruption Purged . | . . . . . . . . . . . . . . . . . Corruption Blocked . | . . . . . . . . . . . . . . . . . Effects 249 | . 6 4 . 68 . 22 25 8 9 . 19 29 . . 59 . Message Errors 61 | . 1 1 . 19 . 7 4 1 1 . 4 7 . . 16 . Matter Fused 60 | . 4 . . 18 . 5 2 4 2 . 6 6 . . 13 . Heat Flow Errors 28 | . 1 . . 11 . 1 3 1 3 . 1 2 . . 5 . Energy Discharges 26 | . . 1 . 8 . 1 6 . 2 . 1 1 . . 6 . Parts Rejected 3 | . . . . . . 1 1 . . . . 1 . . . . Parts Fused 4 | . . . . . . . . 1 . . . 1 . . 2 . Data Loss (minor) 29 | . . 1 . 3 . 2 5 1 1 . 3 4 . . 9 . Data Loss (major) 14 | . . 1 . 4 . 1 2 . . . 3 2 . . 1 . Misfires 9 | . . . . 1 . 2 . . . . . 1 . . 5 . Alerts 5 | . . . . 3 . 1 . . . . . 1 . . . . Misdirections 1 | . . . . . . . . . . . . 1 . . . . Weapon Failures 9 | . . . . 1 . 1 2 . . . 1 2 . . 2 . Overload Shots . | . . . . . . . . . . . . . . . . . Overflow Damage 17684 | . . . . . . . 71 . . 142 204 274 297 334 3989 12373 Projectiles 13792 | . . . . . . . 15 . . 96 76 274 291 309 1991 10740 Explosions 3861 | . . . . . . . 56 . . 46 128 . . . 1998 1633 Melee 31 | . . . . . . . . . . . . . 6 25 . . Knockbacks 2 | . . . . . . . . . . . . . 1 . 1 . Impact 2 | . . . . . . . . . . . . . 1 . 1 . Kinetic . | . . . . . . . . . . . . . . . . . Secondary . | . . . . . . . . . . . . . . . . . Self-Inflicted Damage 1190 | . . . . . . . . . . . . . 43 . 829 318 Shots 15 | . . . . . . . . . . . . . 1 . 8 6 Rammed 1 | . 1 . . . . . . . . . . . . . . . Targets Rammed 10 | . 1 . . . . . . . . . 1 . 2 2 3 1 Kicked 9 | . . . . . . . . . . . 1 . 2 2 3 1 Crushed . | . . . . . . . . . . . . . . . . . Highest Temperature 360 | . 258 . 67 237 252 360 252 58 209 224 322 331 231 198 195 214 Average Temperature 142 | . 72 . 32 75 62 90 65 58 99 61 73 105 68 51 175 53 Received Heat Transfer 1761 | . 144 . 193 . 21 84 39 . . 76 303 136 53 80 408 224 Thermoelectric Energy+ 53705 | . . . . . . . . . . . . 159 20 38 53398 90 Effects 7 | . . . . . . . . . . . 1 3 3 . . . Shutdowns 1 | . . . . . . . . . . . 1 . . . . . Energy Bleed 2 | . . . . . . . . . . . . 2 . . . . Interference 4 | . . . . . . . . . . . . 1 3 . . . Siege Activations 3 | . . . . . . . . . . . . . . . . 3 Total Turns 375 | . . . . . . . . . . . . . . . . 375 Longest Duration 194 | . . . . . . . . . . . . . . . . 194 Martial Activations . | . . . . . . . . . . . . . . . . . Shielding Activations . | . . . . . . . . . . . . . . . . . Robots Disrupted 1 | . . . . . . . . . . . 1 . . . . . Combat Hostiles 1 | . . . . . . . . . . . 1 . . . . . Robots Corrupted 88 | . . . . . . 2 . . . 2 7 12 14 17 29 5 Combat Hostiles 81 | . . . . . . 1 . . . 2 7 11 12 15 28 5 Parts Fried 185 | . . . . . . 3 . . . 5 19 22 21 40 63 12 Impact Corruptions 2 | . . . . . . . . . . . . . 1 1 . . Robots Melted 27 | . . . . . 1 1 2 . . 1 1 1 1 1 15 3 Combat Hostiles 22 | . . . . . . 1 2 . . 1 1 1 1 1 11 3 Parts Melted 108 | . 2 . 1 1 5 . 4 . . 5 6 10 10 7 47 10 Heat Transferred 33270 | . 222 . . 1186 792 879 518 . . 629 1272 2072 1221 814 14156 9509 Parts Sabotaged 4 | . . . . . . . . . . . . . . . 1 3 Parts Stolen . | . . . . . . . . . . . . . . . . . Parts Stripped 14 | . . . . . . . . . . . . . . . . 14 Power Chain Reactions . | . . . . . . . . . . . . . . . . . Alert | -11 -10 -10 -7 -5 -4 -4 -4 -4 -3 -3 -3 -3 -2 -2 -1 -1 ------- Run | Yrd Mat Sub Scr Fac Fac Upp Upp Zhi Pro Res Qua Sec Res Tes Acc Com Maximum Alert Level 5 | . . . . 2 3 . . . . 1 3 3 4 4 5 5 Low Security (%) 9 | 100 100 . . 30 . . . . . 67 . . . . . . Level 1 6 | . . . . 7 8 . . . . 32 24 17 4 . . . Level 2 25 | . . . . 62 47 . . . . . 48 53 35 37 . . Level 3 13 | . . . . . 43 . . . . . 26 29 9 37 7 . Level 4 8 | . . . . . . . . . . . . . 50 24 7 . Level 5 2 | . . . . . . . . . . . . . . . . 31 High Security 33 | . . . . . . . . . . . . . . . 85 68 Max Security . | . . . . . . . . . . . . . . . . . Sterilizations 2 | . . . . 1 . . . . . . . . . . 1 . Peak Influence 7017 | . 62 . . 576 974 . . . . 340 774 849 1361 1347 5441 7017 Initial 3481 | . . . . . 251 . . . . . 180 427 474 715 806 3481 Average 2179 | . 14 . . 384 630 . . . . 112 581 555 949 838 4337 5135 Influence Increases 17766 | . 215 . . 1080 939 315 370 . 10 453 1105 1086 1473 1493 5157 4070 Destroy 0b10 Robot/C 10780 | . 160 . . 380 300 260 320 . . 260 680 680 760 900 3620 2460 Destroy 0b10 Robot/NC 415 | . . . . 40 20 . . . 10 10 . 15 30 15 165 110 Destroy Leader 1640 | . 40 . . 70 52 20 50 . . 52 70 136 176 104 510 360 Allied During Kill 849 | . . . . 117 89 35 . . . . . . 76 . 142 390 Successful Hack 106 | . . . . 5 16 . . . . 24 12 7 . . 42 . Disable Machine 945 | . . . . 135 120 . . . . 45 120 165 75 90 75 120 Destroy Structure 1825 | . . . . 318 182 . . . . 62 148 68 90 84 528 345 Partial Spotted 30 | . 15 . . . . . . . . . 15 . . . . . Lose Combat Pursuer 630 | . . . . 15 . . . . . . 60 15 120 60 75 285 Miscellaneous 546 | . . . . . 160 . . . . . . . 146 240 . . Influence Decreases 10779 | . 215 . . 566 525 818 320 475 10 133 664 1004 1043 1422 1060 2524 Entered New Map 5063 | . . . . . 263 344 82 475 . . 140 334 369 558 538 1960 Time Decay 4576 | . 215 . . 566 262 474 238 . 10 133 514 610 534 464 342 214 Lost Part 440 | . . . . . . . . . . . 10 . . . 140 290 Lost Ally 400 | . . . . . . . . . . . . 60 140 100 40 60 Purge Threat 300 | . . . . . . . . . . . . . . 300 . . Squads Dispatched 122 | . 2 . . 6 3 . . . . 3 5 10 8 9 34 42 Investigation 7 | . . . . . . . . . . . . 4 . 3 . . Extermination 20 | . . . . 2 1 . . . . . 3 4 3 3 3 1 Reinforcement 19 | . 2 . . . 1 . . . . 1 1 . 2 2 4 6 Assault 72 | . . . . 4 . . . . . . 1 2 3 1 26 35 Garrison 4 | . . . . . 1 . . . . 2 . . . . 1 . Intercept . | . . . . . . . . . . . . . . . . . Searches Triggered . | . . . . . . . . . . . . . . . . . Construction Impeded 3 | . . . . . . . . . . . . . . . 3 . Haulers Reinforced 1 | . . . . . 1 . . . . . . . . . . . Active Scanning Responses . | . . . . . . . . . . . . . . . . . Cargo Convoy Interrupts . | . . . . . . . . . . . . . . . . . Stealth | -11 -10 -10 -7 -5 -4 -4 -4 -4 -3 -3 -3 -3 -2 -2 -1 -1 --------- Run | Yrd Mat Sub Scr Fac Fac Upp Upp Zhi Pro Res Qua Sec Res Tes Acc Com Distress Signals 20 | . 1 . . . 1 . . . . 1 1 1 3 3 6 3 Communications Jammed 1 | . . . . . . . . . . . 1 . . . . . Distress Signals 1 | . . . . . . . . . . . 1 . . . . . Times Spotted 699 | . 17 . 8 12 15 13 13 . 1 15 50 40 46 59 221 189 Peak Tracking Total 27 | . 5 . 5 2 4 7 5 . 1 6 8 7 8 9 15 27 Tactical Retreats 24 | . . . . 1 . . . . . . 4 1 2 4 4 8 Traps | -11 -10 -10 -7 -5 -4 -4 -4 -4 -3 -3 -3 -3 -2 -2 -1 -1 ------- Run | Yrd Mat Sub Scr Fac Fac Upp Upp Zhi Pro Res Qua Sec Res Tes Acc Com Traps Triggered 14 | . 3 . . 1 . . . . . 1 . 2 1 2 3 1 Indirectly . | . . . . . . . . . . . . . . . . . Trap Hack Attempts . | . . . . . . . . . . . . . . . . . Triggered . | . . . . . . . . . . . . . . . . . Disarmed . | . . . . . . . . . . . . . . . . . Reprogrammed . | . . . . . . . . . . . . . . . . . Reused . | . . . . . . . . . . . . . . . . . Traps Extracted . | . . . . . . . . . . . . . . . . . Installed . | . . . . . . . . . . . . . . . . . Triggered . | . . . . . . . . . . . . . . . . . Machines | -11 -10 -10 -7 -5 -4 -4 -4 -4 -3 -3 -3 -3 -2 -2 -1 -1 ---------- Run | Yrd Mat Sub Scr Fac Fac Upp Upp Zhi Pro Res Qua Sec Res Tes Acc Com Machines Disabled 80 | . . . 7 10 8 3 . . . 3 9 12 5 7 7 9 Max in Single Turn 4 | . . . 1 1 1 1 . . . 1 1 1 1 1 2 4 Garrison Access 11 | . . . . 4 . . . . . . . 1 1 1 4 . Energy Cycler 2 | . . . . . . . . . . . . . . . 2 . Machines Repaired . | . . . . . . . . . . . . . . . . . Machines Dismantled . | . . . . . . . . . . . . . . . . . Machines Sabotaged . | . . . . . . . . . . . . . . . . . Overloaded Fab Kills . | . . . . . . . . . . . . . . . . . Hacking | -11 -10 -10 -7 -5 -4 -4 -4 -4 -3 -3 -3 -3 -2 -2 -1 -1 --------- Run | Yrd Mat Sub Scr Fac Fac Upp Upp Zhi Pro Res Qua Sec Res Tes Acc Com Machines Accessed 55 | . 1 . 1 3 5 1 1 4 . 2 4 10 8 9 6 . Terminals 32 | . . . . 2 5 1 . . . 1 2 7 5 5 4 . Fabricators 1 | . . . . . . . . . . . . . . 1 . . Repair Stations 2 | . 1 . . . . . . . . . . . . 1 . . Recycling Units . | . . . . . . . . . . . . . . . . . Scanalyzers 8 | . . . . 1 . . . . . 1 2 2 1 1 . . Garrison Access 6 | . . . . . . . . . . . . 1 2 1 2 . Total Hacks 122 | . 1 . 1 5 9 5 1 17 . 5 7 23 18 17 13 . Successful 51 | . . . 1 1 1 5 1 17 . 2 1 8 6 4 4 . Failed 71 | . 1 . . 4 8 . . . . 3 6 15 12 13 9 . Catastrophic 19 | . . . . 1 3 . . . . 1 2 2 3 5 2 . Database Lockouts . | . . . . . . . . . . . . . . . . . Manual 32 | . 1 . . 2 5 . . . . . . 9 7 3 5 . Terminals 73 | . . . . 3 9 5 . . . 3 3 15 12 12 11 . Fabricators 1 | . . . . . . . . . . . . . . 1 . . Repair Stations 3 | . 1 . . . . . . . . . . . . 2 . . Recycling Units . | . . . . . . . . . . . . . . . . . Scanalyzers 19 | . . . . 2 . . . . . 2 4 7 3 1 . . Garrison Access 7 | . . . . . . . . . . . . 1 3 1 2 . Terminal Hacks 37 | . . . 1 1 1 5 1 17 . 1 . 3 2 3 2 . Record 10 | . . . . . . 5 . 5 . . . . . . . . Part Schematic 4 | . . . . . . . . 4 . . . . . . . . Robot Analysis 4 | . . . . . . . . 4 . . . . . . . . Prototype ID Bank 4 | . . . . . . . . 4 . . . . . . . . Open Door 4 | . . . . . . . 1 . . . . 2 . 1 . . Open DSF 1 | . . . . 1 . . . . . . . . . . . . Level Access Points 2 | . . . . . 1 . . . . . . . . . 1 . Branch Access Points 1 | . . . . . . . . . . 1 . . . . . . Scanalyzer Index 1 | . . . . . . . . . . . . 1 . . . . Alert Level 3 | . . . . . . . . . . . . . 2 . 1 . Unreport Threat 2 | . . . . . . . . . . . . . . 2 . . Proto ID Catalog 1 | . . . 1 . . . . . . . . . . . . . Fabricator Hacks . | . . . . . . . . . . . . . . . . . Repair Station Hacks . | . . . . . . . . . . . . . . . . . Recycling Unit Hacks . | . . . . . . . . . . . . . . . . . Scanalyzer 9 | . . . . . . . . . . 1 1 4 3 . . . Insert Component 6 | . . . . . . . . . . . . 4 2 . . . Retrieve Study 3 | . . . . . . . . . . 1 1 . 1 . . . Garrison Access Hacks 4 | . . . . . . . . . . . . 1 1 1 1 . Seal Access 4 | . . . . . . . . . . . . 1 1 1 1 . Unauthorized Hacks 1 | . . . . . . . . . . . . . . . 1 . Terminals 1 | . . . . . . . . . . . . . . . 1 . Botnet 1 | . . . . . . . . . . . . . . . 1 . Fabricators . | . . . . . . . . . . . . . . . . . Repair Stations . | . . . . . . . . . . . . . . . . . Recycling Units . | . . . . . . . . . . . . . . . . . Scanalyzers . | . . . . . . . . . . . . . . . . . Garrison Access . | . . . . . . . . . . . . . . . . . Data Cores Recovered 1 | . . . . . 1 . . . . . . . . . . . Used 1 | . . . . . 1 . . . . . . . . . . . Hacking Detections 40 | . 1 . . 2 5 1 . . . 2 4 7 6 7 5 . Full Trace Events 4 | . . . . . . . . . . . . 3 . 1 . . Feedback Events . | . . . . . . . . . . . . . . . . . Feedback Blocked . | . . . . . . . . . . . . . . . . . Robot Schematics Acquired 2 | . . . . . . . . . . . . . . 2 . . Robots Built . | . . . . . . . . . . . . . . . . . Authchips . | . . . . . . . . . . . . . . . . . Time . | . . . . . . . . . . . . . . . . . Total Robot Build Rating . | . . . . . . . . . . . . . . . . . Part Schematics Acquired 6 | . . . . . . . . 4 . . 1 . . 1 . . Parts Built . | . . . . . . . . . . . . . . . . . Authchips . | . . . . . . . . . . . . . . . . . Time . | . . . . . . . . . . . . . . . . . Total Part Build Rating . | . . . . . . . . . . . . . . . . . Part Studies Acquired 3 | . . . . . . . . . . 1 1 . 1 . . . Parts Repaired . | . . . . . . . . . . . . . . . . . Time . | . . . . . . . . . . . . . . . . . Parts Recycled . | . . . . . . . . . . . . . . . . . Recycled Matter . | . . . . . . . . . . . . . . . . . Retrieved Matter . | . . . . . . . . . . . . . . . . . Retrieved Components . | . . . . . . . . . . . . . . . . . Parts Scanalyzed . | . . . . . . . . . . . . . . . . . Part Schematics Acquired . | . . . . . . . . . . . . . . . . . Parts Damaged . | . . . . . . . . . . . . . . . . . Bothacking | -11 -10 -10 -7 -5 -4 -4 -4 -4 -3 -3 -3 -3 -2 -2 -1 -1 ------------ Run | Yrd Mat Sub Scr Fac Fac Upp Upp Zhi Pro Res Qua Sec Res Tes Acc Com Used RIF Installer . | . . . . . . . . . . . . . . . . . Robots Hacked 1 | . . . . 1 . . . . . . . . . . . . Non-combat . | . . . . . . . . . . . . . . . . . Combat 1 | . . . . 1 . . . . . . . . . . . . Robot Hacks Applied 1 | . . . . 1 . . . . . . . . . . . . parse_system 1 | . . . . 1 . . . . . . . . . . . . Relay Couplers Released 7 | . . . . . . . . . . . . 4 . . 3 . Machine Destruction 7 | . . . . . . . . . . . . 4 . . 3 . Fabnet Peak Effective % . | . . . . . . . . . . . . . . . . . Robots Rewired . | . . . . . . . . . . . . . . . . . Allies Hacked 1 | . . . . . . . . . . . . . 1 . . . Hacks Repelled . | . . . . . . . . . . . . . . . . . Allies | -11 -10 -10 -7 -5 -4 -4 -4 -4 -3 -3 -3 -3 -2 -2 -1 -1 -------- Run | Yrd Mat Sub Scr Fac Fac Upp Upp Zhi Pro Res Qua Sec Res Tes Acc Com Total Allies 30 | . . . 1 . . . . . . . . 3 7 5 5 9 Largest Group 5 | . . . 1 1 1 1 . . . . . 3 4 5 3 3 Highest-Rated Group 549 | . . . 464 464 464 464 . . . . . 192 256 290 297 549 Highest-Rated Ally 464 | . . . 464 464 464 464 . . . . . 64 64 58 119 183 Total Orders 5 | . . . . 2 . . . . . . . 1 1 1 . . STAY 3 | . . . . . . . . . . . . 1 1 1 . . EXPLORE 2 | . . . . 2 . . . . . . . . . . . . Ally Attacks 294 | . . . 21 63 24 10 . . . . . 14 38 13 25 86 Total Damage 17150 | . . . 1513 3421 2398 1205 . . . . . 618 1656 389 1219 4731 Kills 78 | . . . 7 18 16 5 . . . . . 2 5 1 6 18 Allies Corrupted 5 | . . . . . . 1 . . . . . 2 1 . . 1 Allies Melted . | . . . . . . . . . . . . . . . . . X0-1V1 Amusement Gains 354 | . 14 . . 100 . . . . . . 10 55 . . 99 76 Average Entertainment 46 | . 14 6 2 54 41 24 17 . 4 2 8 22 41 18 77 84 Good Acts 124 | . . . . 9 . 5 . . 2 5 11 20 9 8 32 23 Bad Acts 83 | . . 2 . 12 2 6 2 . . . 2 2 6 11 23 15 Intel | -11 -10 -10 -7 -5 -4 -4 -4 -4 -3 -3 -3 -3 -2 -2 -1 -1 ------- Run | Yrd Mat Sub Scr Fac Fac Upp Upp Zhi Pro Res Qua Sec Res Tes Acc Com Active Infowar (turns) 8464 | . . . . 1279 449 1076 436 199 178 366 1162 1046 1053 761 459 . Optics 629 | . . . . . 449 180 . . . . . . . . . . Sensors 7756 | . . . . 1208 . 896 436 199 178 366 1154 1046 1053 761 459 . Jamming 1267 | . . . . 1262 . . . . . . 5 . . . . . ECM 3 | . . . . . . . . . . . 3 . . . . . Robot Analysis Total 4 | . . . . . . . . 4 . . . . . . . . Derelict Logs Recovered 5 | . . 1 . . . 1 3 . . . . . . . . . Drone Launches 2 | . . . . 2 . . . . . . . . . . . . Drone Recoveries . | . . . . . . . . . . . . . . . . . Exploration | -11 -10 -10 -7 -5 -4 -4 -4 -4 -3 -3 -3 -3 -2 -2 -1 -1 ------------- Run | Yrd Mat Sub Scr Fac Fac Upp Upp Zhi Pro Res Qua Sec Res Tes Acc Com Turns Passed 20967 | 3 759 175 2479 1825 568 1205 504 199 178 366 1402 1990 1507 1174 5190 1443 Spaces Moved 13371 | 3 397 110 1868 1048 366 805 372 147 142 232 896 1340 1026 717 3448 454 Core . | . . . . . . . . . . . . . . . . . Treads 852 | . 370 110 363 . . . . . . . . . . . . 9 Legs 9701 | 3 27 . . 159 . 747 372 147 142 232 896 1340 1026 717 3448 445 Wheels 2818 | . . . 1505 889 366 58 . . . . . . . . . . Hover . | . . . . . . . . . . . . . . . . . Flight . | . . . . . . . . . . . . . . . . . Fastest Speed 105 | 120 120 160 105 120 125 120 120 120 120 120 120 120 120 120 116 116 Average Speed 125 | 120 157 160 127 143 137 121 120 120 120 120 120 120 120 120 119 128 Slowest Speed 240 | 120 160 160 160 190 145 190 120 120 120 190 190 120 120 120 120 240 Overloaded Moves . | . . . . . . . . . . . . . . . . . Propulsion Burnouts . | . . . . . . . . . . . . . . . . . Robots Hopped . | . . . . . . . . . . . . . . . . . Potential Cave-ins 5 | . . . . . . . . . . . . . . . . 5 Cave-ins Triggered 4 | . . . . . . . . . . . . . . . 4 . Teleports 2 | . . . . . . . . . . . . 1 . . 1 . Exploration Rate (%) 47 | 1 69 10 82 28 11 70 61 60 42 10 82 68 26 86 86 21 Regions Visited 16 Branch Regions 10 Pre-discovered Areas 7 | . . . . . . 2 2 3 . . . . . . . . Known Exits Taken 9 | . . . . 1 . 1 . . 1 1 1 1 1 1 1 . Unknown Exits Taken 7 | 1 1 1 1 . 1 . 1 1 . . . . . . . . Scrap Searched 8 | . . . 4 . . 2 2 . . . . . . . . . Spaces Dug 110 | . . . . . . 2 4 . . 12 15 17 14 19 23 4 Terrain Destroyed 926 | . . . 7 . 4 12 89 . 49 56 90 36 29 33 233 288 Melee . | . . . . . . . . . . . . . . . . . Projectile 420 | . . . . . 4 12 6 . . 21 30 36 21 33 40 217 AOE 504 | . . . 7 . . . 83 . 49 35 60 . 8 . 191 71 Terrain Rammed . | . . . . . . . . . . . . . . . . . Walls Destroyed . | . . . . . . . . . . . . . . . . . Machines Disabled . | . . . . . . . . . . . . . . . . . Actions | -11 -10 -10 -7 -5 -4 -4 -4 -4 -3 -3 -3 -3 -2 -2 -1 -1 --------- Run | Yrd Mat Sub Scr Fac Fac Upp Upp Zhi Pro Res Qua Sec Res Tes Acc Com Total 17014 | 2 493 109 1950 1311 406 953 396 170 146 315 1204 1706 1291 1027 4370 1165 Wait 1438 | . 32 . 6 167 . . 1 . 1 20 116 96 104 113 305 477 Move 13354 | 2 396 109 1867 1047 365 804 371 146 141 231 895 1339 1025 716 3446 454 Hop . | . . . . . . . . . . . . . . . . . Pick Up 170 | . 17 . 23 13 2 17 . 3 . . 10 15 10 6 39 15 Fast Attach 155 | . 3 . 4 10 8 14 1 8 . 4 10 15 1 10 45 22 Attach 102 | . . . 3 10 1 5 . 3 . 3 7 11 5 4 30 20 Detach 55 | . . . 1 3 1 3 . 1 . 3 4 3 1 4 21 10 Swap 178 | . 5 . 10 6 4 8 6 . 2 3 14 33 22 18 41 6 Drop 250 | . 13 . 25 17 11 34 . 9 . . 14 15 5 18 68 21 Fire 1268 | . 26 . 9 38 14 68 17 . 2 51 133 179 111 136 362 122 Melee 19 | . . . 2 . . . . . . . . . . . . 17 Ram . | . . . . . . . . . . . . . . . . . Kick 9 | . . . . . . . . . . . 1 . 2 2 3 1 Crush 1 | . 1 . . . . . . . . . . . . . . . Escape Stasis 15 | . . . . . . . . . . . . . 5 . 10 . Rewire . | . . . . . . . . . . . . . . . . . Trap . | . . . . . . . . . . . . . . . . . Miscellaneous . | . . . . . . . . . . . . . . . . . Route ------- -11/Scrapyard -10/Materials (discovered 4 exits: [*Mat x2] / [*Min] / [*Sub]) -10/Subcaves (discovered 2 exits: Rec / *Scr) -7/Scraptown -5/Factory (discovered 2 exits: *Fac x2) -4/Factory (discovered 5 exits: Res x4 / *Upp) -4/Upper Caves -4/Upper Caves (discovered 2 exits: *Res / *Zhi) -4/Zhirov -3/Proximity Caves -3/Research (discovered 5 exits: Res x3 / *Qua x2) -3/Quarantine (discovered 3 exits: *Res / *Sec / *Frg) -3/Section 7 -2/Research -2/Testing -1/Access (discovered 2 exits: Sur / *Com) -1/Command (discovered 2 exits: Sur x2) History --------- Turn | Location | Event 1 | -11/Scrapyard | Discovered new exit (range 3) 4 | -11/Scrapyard | Entered Materials 315 | -10/Materials | Build established: Mutant 315 | -10/Materials | Discovered new exit (range 16) 491 | -10/Materials | Discovered new exit (range 15) 701 | -10/Materials | Discovered new exit (range 7) 750 | -10/Materials | Discovered new exit (range 5) 761 | -10/Materials | Prayed at D.C.S.S. Altar Unit 763 | -10/Materials | Entered Subcaves 764 | -10/Subcaves | Approached by a straggling Scientist 765 | -10/Subcaves | Identified exit to Recycling 909 | -10/Subcaves | Scientist uncovered a shortcut to Scraptown 938 | -10/Subcaves | Entered Scraptown 938 | -7/Scraptown | System corruption cleaned by C-Scrubber 1098 | -7/Scraptown | Visited UFD Registry 1098 | -7/Scraptown | Registered with UFD as "Ionforce" 1134 | -7/Scraptown | Visited Junk Repository 1172 | -7/Scraptown | Visited Science Guys 1225 | -7/Scraptown | Visited Derelict Rescue Squad 1244 | -7/Scraptown | Visited Observation Area 1266 | -7/Scraptown | Visited Infowarlord's Domain 1289 | -7/Scraptown | Visited Supply Room 1310 | -7/Scraptown | Visited Science Testing Area 1332 | -7/Scraptown | Visited DA-N13 Charitable Foundation 1338 | -7/Scraptown | Found DCF Scrap (27 items) 1388 | -7/Scraptown | Visited Curators Association 1423 | -7/Scraptown | Visited Scrap Suit Storage 1625 | -7/Scraptown | Found Exp. Sensor Array 1672 | -7/Scraptown | Received an X-ray algorithm 2033 | -7/Scraptown | Visited IN-MT5's Study 2042 | -7/Scraptown | Visited Symbiants 2054 | -7/Scraptown | Visited CR-KLE's Repair Center 2071 | -7/Scraptown | Visited Cyclists 2087 | -7/Scraptown | Visited Comm Corps 3190 | -7/Scraptown | X0-1V1 brought Wyrm Statue to life 3190 | -7/Scraptown | Attacked by Scraptown defenders 3324 | -7/Scraptown | Core integrity fell below 50% 3405 | -7/Scraptown | Discovered new exit (range 3) 3417 | -7/Scraptown | Entered Factory 3417 | -5/Factory | Accompanied by 1 ally 3417 | -5/Factory | Evolved 10 slots: Power x1, Propulsion x3, Utility x6 3420 | -5/Factory | X0-1V1 activates XOMVISION 3424 | -5/Factory | KI resistance permanently improved by X0-1V1 (+10%; -100 max core) 3426 | -5/Factory | Attached CPS modules to Chaos Wyrm 3450 | -5/Factory | Identified exit to Factory 3450 | -5/Factory | X0-1V1 revealed exit location to -4/Factory 3468 | -5/Factory | Spotted B-75 Beast 3468 | -5/Factory | X0-1V1 sent you into danger 3474 | -5/Factory | Allies destroyed B-75 Beast 3508 | -5/Factory | X0-1V1 released a cloud of subatomizers 3730 | -5/Factory | System corruption reached 10% 4307 | -5/Factory | X0-1V1 activates XOMVISION 4339 | -5/Factory | Sterilization system engaged 4339 | -5/Factory | Non-combat units ordered to evacuate 4439 | -5/Factory | Combat units ordered to evacuate 4623 | -5/Factory | Sensors blinded by X0-1V1 4639 | -5/Factory | Ambient heat levels rising (+10) 4783 | -5/Factory | Discovered exit to Factory (range 15) 4789 | -5/Factory | Ambient heat levels rising (+10) 4939 | -5/Factory | Ambient heat levels rising (+10) 5089 | -5/Factory | Ambient heat levels rising (+10) 5239 | -5/Factory | Ambient heat levels rising (+10) 5242 | -5/Factory | Entered another Factory area 5242 | -4/Factory | Accompanied by 1 ally 5242 | -4/Factory | Evolved 2 slots: Utility x2 5265 | -4/Factory | Identified exit to Research 5639 | -4/Factory | X0-1V1 added 0b10 threat records associated with you (minor) 5681 | -4/Factory | Garrison activated, responded to threat 5723 | -4/Factory | Build established: Scavenger-Mutant 5725 | -4/Factory | Discovered new exit (range 23) 5810 | -4/Factory | Entered Upper Caves 5810 | -4/Upper Caves | Accompanied by 1 ally 5812 | -4/Upper Caves | Attracted the attention of an 0b10 base 5840 | -4/Upper Caves | Learned Research terminal intel 5852 | -4/Upper Caves | Learned location of Armory (-4) 5852 | -4/Upper Caves | Learned location of 1 exit from Proximity Caves 5852 | -4/Upper Caves | Learned location of 1 exit from Research 5873 | -4/Upper Caves | Heat dissipation permanently improved by X0-1V1 (+20; -100 max core) 5895 | -4/Upper Caves | Attached CPS modules to Chaos Wyrm 5927 | -4/Upper Caves | Identified exit to Upper Caves 5927 | -4/Upper Caves | X0-1V1 revealed exit location to -4/Upper Caves 5941 | -4/Upper Caves | X0-1V1 activates XOMVISION 5977 | -4/Upper Caves | Murdered Chaos Wyrm 5977 | -4/Upper Caves | Destroyed Chaos Wyrm 5994 | -4/Upper Caves | Found Prototype Protection 5994 | -4/Upper Caves | Identified Wyrmscale 6056 | -4/Upper Caves | Found Ragnarok Missile Launcher 6084 | -4/Upper Caves | Found Adv. Particle Accelerator 6100 | -4/Upper Caves | Found Quantum Capacitor 6102 | -4/Upper Caves | Found Wyrmscale 6145 | -4/Upper Caves | Found Wyrmscale 6368 | -4/Upper Caves | Found Wyrmscale 6784 | -4/Upper Caves | X0-1V1 sent you into danger 6819 | -4/Upper Caves | X0-1V1 caused items to flee you 6865 | -4/Upper Caves | System corruption reached 10% 7015 | -4/Upper Caves | Entered another Upper Caves area 7075 | -4/Upper Caves | Discovered exit to Research (range 10) 7227 | -4/Upper Caves | X0-1V1 vaporized surrounding terrain (radius 24) 7259 | -4/Upper Caves | Spotted B-86 Titan 7266 | -4/Upper Caves | Destroyed B-86 Titan 7307 | -4/Upper Caves | Learned location of Quarantine (-3) 7308 | -4/Upper Caves | Learned location of 1 exit from Research 7440 | -4/Upper Caves | Destroyed 10 combat bots 7507 | -4/Upper Caves | Discovered new exit (range 10) 7519 | -4/Upper Caves | Entered Zhirov 7521 | -4/Zhirov | Discovered new exit (range 3) 7542 | -4/Zhirov | Met Zhirov 7564 | -4/Zhirov | Learned location of Testing (-2) 7564 | -4/Zhirov | Learned location of Command (-1) 7576 | -4/Zhirov | Zhirov requested help retrieving the SGEMP Prototype 7594 | -4/Zhirov | Found Alien Artifact 7594 | -4/Zhirov | Identified Integrated Dissipator 7594 | -4/Zhirov | Installed Integrated Dissipator, increased core heat dissipation (+20) 7614 | -4/Zhirov | Found Alien Artifact 7718 | -4/Zhirov | Entered Proximity Caves 7794 | -3/Proximity Caves | Melee accuracy permanently improved by X0-1V1 (+9%; -90 max core) 7896 | -3/Proximity Caves | Entered Research 7896 | -3/Research | Evolved 2 slots: Utility x2 7897 | -3/Research | Identified exit to Quarantine 7897 | -3/Research | Identified exit to Research 7898 | -3/Research | Loaded intel: 24 terminal locations 8046 | -3/Research | X0-1V1 revealed exit location to -2/Research 8095 | -3/Research | Garrison activated, responded to threat 8127 | -3/Research | X0-1V1 revealed exit location to -2/Research 8130 | -3/Research | X0-1V1 activates XOMVISION 8135 | -3/Research | Destroyed 7 combat bots 8262 | -3/Research | Entered Quarantine 8409 | -3/Quarantine | Found Alien Artifact 8502 | -3/Quarantine | Spotted Alpha 7 8668 | -3/Quarantine | Destroyed 8 combat bots 8679 | -3/Quarantine | Weapon slot count temporarily expanded by X0-1V1 (+4) 8684 | -3/Quarantine | Destroyed Alpha 7 8691 | -3/Quarantine | Found Prototype Device 8691 | -3/Quarantine | Identified Exp. ECM Suite 8798 | -3/Quarantine | X0-1V1 enhanced Transport squad support 8871 | -3/Quarantine | Found Alien Artifact 8959 | -3/Quarantine | X0-1V1 activates XOMVISION 8976 | -3/Quarantine | Discovered exit to Research (range 11) 9001 | -3/Quarantine | Found Alien Artifact 9001 | -3/Quarantine | Identified Phase Armor 9012 | -3/Quarantine | First assault squad dispatched 9127 | -3/Quarantine | Cryocooling Duct disabled 9142 | -3/Quarantine | Ambient heat levels rising (+20) 9142 | -3/Quarantine | Non-combat units ordered to evacuate 9223 | -3/Quarantine | Weapon slot count reverted to normal (-4) 9323 | -3/Quarantine | X0-1V1 caused items to flee you 9335 | -3/Quarantine | Destroyed 7 combat bots 9414 | -3/Quarantine | X0-1V1 foreshadows a heat wave 9463 | -3/Quarantine | Identified exit to Protoforge 9463 | -3/Quarantine | X0-1V1 revealed exit location to -3/Protoforge 9499 | -3/Quarantine | Items stopped fleeing you 9519 | -3/Quarantine | Found Alien Artifact 9529 | -3/Quarantine | Found Alien Artifact 9538 | -3/Quarantine | Ambient heat levels rising (+10) 9577 | -3/Quarantine | Spotted Fortress 9589 | -3/Quarantine | Weapon slot count temporarily expanded by X0-1V1 (+2) 9660 | -3/Quarantine | Discovered new exit (range 5) 9663 | -3/Quarantine | Identified exit to Section 7 9664 | -3/Quarantine | Entered Section 7 9681 | -3/Section 7 | Found Quantum Capacitor 9756 | -3/Section 7 | Found Alien Artifact 9849 | -3/Section 7 | X0-1V1 revealed exit location to -2/Research 9963 | -3/Section 7 | Identified Core Reset Matrix 9965 | -3/Section 7 | Identified Integrated Reactor 9965 | -3/Section 7 | Installed Integrated Reactor, increased core energy generation (+10) 10072 | -3/Section 7 | Spotted S7 Guard 10089 | -3/Section 7 | Destroyed S7 Guard 10104 | -3/Section 7 | Found Corrupted Prototype Protection 10104 | -3/Section 7 | Identified Hvy. Regenerative Plating 10105 | -3/Section 7 | System corruption reached 10% 10106 | -3/Section 7 | X0-1V1 activates XOMVISION 10122 | -3/Section 7 | Destroyed 7 combat bots 10154 | -3/Section 7 | Found Alien Artifact 10163 | -3/Section 7 | Weapon slot count reverted to normal (-2) 10180 | -3/Section 7 | Identified Core Physics Calibrator 10193 | -3/Section 7 | Spotted S7 Guard 10213 | -3/Section 7 | Found Alien Artifact 10241 | -3/Section 7 | Identified Core Membrane 10241 | -3/Section 7 | Installed Core Membrane, gained immunity to corruption 10263 | -3/Section 7 | X0-1V1 sent you to a vault 10315 | -3/Section 7 | Found Alien Artifact 10315 | -3/Section 7 | Identified Integrity Redistributor 10315 | -3/Section 7 | Used Integrity Redistributor, redistributed integrity from core (-204) 10326 | -3/Section 7 | Identified Dimensional Node Initializer 10326 | -3/Section 7 | Initialized slip node 10364 | -3/Section 7 | Spotted Executioner 10365 | -3/Section 7 | Spotted Executioner 10392 | -3/Section 7 | Destroyed Executioner 10393 | -3/Section 7 | Destroyed Executioner 10401 | -3/Section 7 | Found Prototype Processor 10436 | -3/Section 7 | Found Alien Artifact 10505 | -3/Section 7 | Spotted B-99 Colossus 10575 | -3/Section 7 | Found Alien Artifact 10575 | -3/Section 7 | Identified Core Expander 10575 | -3/Section 7 | Installed Core Expander, added new Weapon slot 10586 | -3/Section 7 | Found Core Expander 10586 | -3/Section 7 | Installed Core Expander, added new Propulsion slot 10589 | -3/Section 7 | Found Core Expander 10589 | -3/Section 7 | Installed Core Expander, added new Power slot 10640 | -3/Section 7 | Found Alien Artifact 10640 | -3/Section 7 | Identified LRC Energy Well 10640 | -3/Section 7 | Installed LRC Energy Well, increased energy storage capacity (+250) 10720 | -3/Section 7 | Identified Transdimensional Reconstructor 10720 | -3/Section 7 | Warped through subspace to slip node 10803 | -3/Section 7 | Spotted S7 Guard 10812 | -3/Section 7 | Found Alien Artifact 10876 | -3/Section 7 | Found Gamma Bomb Array 11105 | -3/Section 7 | Build established: Scavenger-Tank 11152 | -3/Section 7 | Spotted S7 Guard 11186 | -3/Section 7 | Destroyed S7 Guard 11206 | -3/Section 7 | Found Alien Artifact 11239 | -3/Section 7 | X0-1V1 activates XOMVISION 11314 | -3/Section 7 | Identified Navigation Efficiency Matrix 11314 | -3/Section 7 | Identified Integrated Thermoelectric Network 11314 | -3/Section 7 | Installed Integrated Thermoelectric Network, gained heat-energy exchange potential 11414 | -3/Section 7 | First assault squad dispatched 11461 | -3/Section 7 | Build established: Scavenger-Skirmisher 11647 | -3/Section 7 | X0-1V1 activates XOMVISION 11654 | -3/Section 7 | Entered Research 11654 | -2/Research | Evolved 2 slots (calibrated): -Propulsion x1, Utility x4, -Weapon x1 11654 | -2/Research | Identified Exp. Core Analyzer 11836 | -2/Research | Identified Hpw. Transdimensional Reconstructor 11836 | -2/Research | Identified Subatomic Replicator 11915 | -2/Research | X0-1V1 sent allied Y-72 Warden (x4) 11955 | -2/Research | Build established: Scavenger-Mutant 12035 | -2/Research | Sensors blinded by X0-1V1 12132 | -2/Research | Lost 3 allies 12178 | -2/Research | X0-1V1 announced a LAN party 12320 | -2/Research | Destroyed 9 combat bots 12323 | -2/Research | X0-1V1 added 0b10 threat records associated with you (minor) 12572 | -2/Research | X0-1V1 sent you to a vault 12584 | -2/Research | Spotted B-90 Cyclops 12591 | -2/Research | Destroyed B-90 Cyclops 12654 | -2/Research | First assault squad dispatched 12788 | -2/Research | X0-1V1 tapped a No Entrance sign 13057 | -2/Research | Discovered new exit (range 4) 13061 | -2/Research | Identified exit to Testing 13087 | -2/Research | X0-1V1 put everyone to sleep 13161 | -2/Research | Entered Testing 13241 | -2/Testing | Identified exit to Access 13241 | -2/Testing | X0-1V1 revealed exit location to -1/Access 13391 | -2/Testing | X0-1V1 sent you to a vault 13446 | -2/Testing | Found Prototype Ballistic Gun 13446 | -2/Testing | Identified Hyp. Multirail 13550 | -2/Testing | Destroyed 8 combat bots 13583 | -2/Testing | Found Prototype Energy Cannon 13586 | -2/Testing | Identified Potential Cannon 13589 | -2/Testing | Found Prototype Energy Cannon 13589 | -2/Testing | Identified Imp. Potential Cannon 13593 | -2/Testing | X0-1V1 added 0b10 threat records associated with you (major) 13661 | -2/Testing | First assault squad dispatched 13799 | -2/Testing | Found Prototype Hackware 14189 | -2/Testing | Found Prototype Protection 14189 | -2/Testing | Identified SHELL Armor 14254 | -2/Testing | X0-1V1 sent hostile B-74 Champion (x3) 14335 | -2/Testing | Entered Access 14381 | -1/Access | Energy Cycler disabled 14447 | -1/Access | Identified System Mapper 14585 | -1/Access | First assault squad dispatched 14683 | -1/Access | Garrison activated, responded to threat 14748 | -1/Access | Destroyed 12 combat bots 14822 | -1/Access | X0-1V1 sent hostile G-67 Veteran (x3) 14883 | -1/Access | Identified exit to Surface 15096 | -1/Access | High security lockdown imminent 15142 | -1/Access | Destroyed 14 combat bots 15159 | -1/Access | Spotted B-99 Colossus 15159 | -1/Access | Spotted B-99 Colossus 15161 | -1/Access | Warped through subspace 15176 | -1/Access | High security lockdown engaged 15234 | -1/Access | X0-1V1 redirected Transport squads to designated parking area 15293 | -1/Access | Spotted B-99 Colossus 15293 | -1/Access | X0-1V1 sent you into danger 15297 | -1/Access | Destroyed B-99 Colossus 15326 | -1/Access | Scanned by Researcher 15328 | -1/Access | Spotted Investigator 15351 | -1/Access | Destroyed Investigator 15370 | -1/Access | Destroyed 13 combat bots 15379 | -1/Access | Spotted Striker 15379 | -1/Access | Spotted Striker 15384 | -1/Access | Destroyed Striker 15389 | -1/Access | Destroyed Striker 15405 | -1/Access | Spotted Striker 15449 | -1/Access | Destroyed 20 combat bots 15460 | -1/Access | Found Prototype Launcher 15464 | -1/Access | X0-1V1 downgraded hostiles (x1) 15475 | -1/Access | Identified Containment Facilitator 15513 | -1/Access | Destroyed 7 combat bots 15708 | -1/Access | Destroyed 17 combat bots 15732 | -1/Access | Spotted Striker 15732 | -1/Access | Spotted Executioner 15736 | -1/Access | Destroyed Executioner 15742 | -1/Access | Spotted Striker 15742 | -1/Access | Spotted Executioner 15742 | -1/Access | Spotted Striker 15746 | -1/Access | Spotted Striker 15746 | -1/Access | Spotted Executioner 15746 | -1/Access | Spotted Executioner 15746 | -1/Access | Destroyed Executioner 15753 | -1/Access | Sterilization system engaged 15755 | -1/Access | Destroyed Striker 15770 | -1/Access | Destroyed Executioner 15772 | -1/Access | Crushed by falling debris 15773 | -1/Access | Destroyed Striker 15774 | -1/Access | Crushed by falling debris 15780 | -1/Access | Destroyed Executioner 15782 | -1/Access | Destroyed Striker 15784 | -1/Access | X0-1V1 sent allied Executioner (x2) 15784 | -1/Access | Spotted Striker 15787 | -1/Access | Crushed by falling debris 15788 | -1/Access | Crushed by falling debris 15793 | -1/Access | Destroyed Striker 15818 | -1/Access | Destroyed 31 combat bots 15823 | -1/Access | Lost 8 parts (2p5u1w) 15886 | -1/Access | Spotted Executioner 15886 | -1/Access | Spotted Executioner 15899 | -1/Access | Destroyed Executioner 15913 | -1/Access | Destroyed Executioner 15925 | -1/Access | Identified exit to Command 15925 | -1/Access | X0-1V1 revealed exit location to -1/Command 15940 | -1/Access | Lost 4 parts (1p2u1w) 16035 | -1/Access | Found Prototype Launcher 16035 | -1/Access | Identified Tesla Bomb Launcher 16053 | -1/Access | Ambient heat levels rising (+10) 16203 | -1/Access | Ambient heat levels rising (+10) 16308 | -1/Access | Found Prototype Processor 16308 | -1/Access | Identified Exp. Targeting Computer 16353 | -1/Access | Ambient heat levels rising (+10) 16445 | -1/Access | Found Prototype Device 16445 | -1/Access | Identified Exp. Shield Generator 16452 | -1/Access | X0-1V1 sent hostile S-43 Plague (x3) 16464 | -1/Access | Found Exp. Shield Generator 16503 | -1/Access | Ambient heat levels rising (+10) 16516 | -1/Access | Destroyed 7 combat bots 16545 | -1/Access | Found Prototype Launcher 16545 | -1/Access | Identified Point Singularity Launcher 16602 | -1/Access | Found Exp. Shield Generator 16653 | -1/Access | Ambient heat levels rising (+10) 16685 | -1/Access | X0-1V1 sent allied Striker (x3) 16711 | -1/Access | Found Prototype Device 16711 | -1/Access | Identified Exp. Actuator Array 16803 | -1/Access | Ambient heat levels rising (+10) 16832 | -1/Access | X0-1V1 sent you to a vault 16836 | -1/Access | Found Alien Artifact 16836 | -1/Access | Identified Emergency Decompositor 16836 | -1/Access | Installed Emergency Decompositor, gained core-matter conversion pathway 16842 | -1/Access | Found Botcube 16848 | -1/Access | Found Zero-point Reactor 16861 | -1/Access | Found Prototype Device 16861 | -1/Access | Identified Exp. Shock Absorption System 16870 | -1/Access | Found Prototype Device 16870 | -1/Access | Identified Exp. EM Disruption Field 16878 | -1/Access | Found Ragnarok Missile Launcher 16881 | -1/Access | Found Prototype Launcher 16882 | -1/Access | Identified Tactical Quantum Warhead 16887 | -1/Access | Found Chaos Jack 16953 | -1/Access | Ambient heat levels rising (+10) 17103 | -1/Access | Ambient heat levels rising (+10) 17253 | -1/Access | Ambient heat levels rising (+10) 17403 | -1/Access | Ambient heat levels rising (+10) 17553 | -1/Access | Ambient heat levels rising (+10) 17703 | -1/Access | Ambient heat levels rising (+10) 17853 | -1/Access | Ambient heat levels rising (+10) 17990 | -1/Access | Core integrity restored by X0-1V1 (+340) 18003 | -1/Access | Ambient heat levels rising (+10) 18153 | -1/Access | Ambient heat levels rising (+10) 18183 | -1/Access | X0-1V1 activates XOMVISION 18303 | -1/Access | Ambient heat levels rising (+10) 18453 | -1/Access | Ambient heat levels rising (+10) 18603 | -1/Access | Ambient heat levels rising (+10) 18753 | -1/Access | Ambient heat levels rising (+10) 18903 | -1/Access | Ambient heat levels rising (+10) 19053 | -1/Access | Ambient heat levels rising (+10) 19203 | -1/Access | Ambient heat levels rising (+10) 19267 | -1/Access | X0-1V1 sent hostile G-73 Enforcer (x5) 19353 | -1/Access | Ambient heat levels rising (+10) 19465 | -1/Access | X0-1V1 caused items to flee you 19503 | -1/Access | Ambient heat levels rising (+10) 19525 | -1/Access | Entered Command 19630 | -1/Command | Spotted B-99 Colossus 19775 | -1/Command | First assault squad dispatched 19913 | -1/Command | X0-1V1 caused items to flee you 19973 | -1/Command | X0-1V1 activates XOMVISION 19975 | -1/Command | High security lockdown imminent 19987 | -1/Command | X0-1V1 revealed exit location to -0/Surface 20010 | -1/Command | X0-1V1 sent you into danger 20055 | -1/Command | High security lockdown engaged 20080 | -1/Command | Lost 4 parts (4u) 20105 | -1/Command | Destroyed 42 combat bots 20161 | -1/Command | Items stopped fleeing you 20165 | -1/Command | X0-1V1 sent you to a vault 20169 | -1/Command | Found Alien Artifact 20186 | -1/Command | Found Prototype Device 20186 | -1/Command | Identified Exp. Phase Shifter 20190 | -1/Command | Found Unknown Device 20190 | -1/Command | Identified Adv. Force Booster 20210 | -1/Command | Found Prototype Device 20210 | -1/Command | Identified Exp. EM Shield 20228 | -1/Command | Found Chaos Jack 20229 | -1/Command | Identified Terrabomb 20229 | -1/Command | Used Terrabomb 20367 | -1/Command | Destroyed 15 combat bots 20373 | -1/Command | X0-1V1 sent allied H-81 Overseer (x3) 20456 | -1/Command | X0-1V1 revealed exit location to -0/Surface 20478 | -1/Command | Spotted Investigator 20494 | -1/Command | Destroyed Investigator 20525 | -1/Command | Destroyed 15 combat bots 20687 | -1/Command | Spotted Executioner 20687 | -1/Command | Spotted Executioner 20687 | -1/Command | Spotted Executioner 20687 | -1/Command | Spotted Executioner 20687 | -1/Command | Spotted Striker 20690 | -1/Command | Spotted Executioner 20690 | -1/Command | Spotted Executioner 20697 | -1/Command | Destroyed Executioner 20700 | -1/Command | Destroyed Executioner 20712 | -1/Command | X0-1V1 sent allied Executioner (x3) 20712 | -1/Command | Destroyed Striker 20719 | -1/Command | Core integrity fell below 50% 20720 | -1/Command | Allies destroyed Executioner 20727 | -1/Command | Allies destroyed Executioner 20730 | -1/Command | Destroyed Executioner 20737 | -1/Command | Allies destroyed Executioner 20764 | -1/Command | Destroyed 20 combat bots 20765 | -1/Command | Lost 20 parts (5p2n9u4w) 20829 | -1/Command | Destroyed Executioner 20866 | -1/Command | Found Containment Facilitator 20901 | -1/Command | X0-1V1 vaporized surrounding terrain (radius 24) 20932 | -1/Command | Used Subatomic Replicator to replicate Imp. Potential Cannon 20950 | -1/Command | Spotted Executioner 20958 | -1/Command | Core integrity fell below 20% 20959 | -1/Command | Spotted Striker 20959 | -1/Command | Spotted Striker 20968 | -1/Command | Destroyed by Executioner with Helical Railgun Last Messages --------------- 20963_ Core Membrane filtered system corruption (1). 20964_ E-15 Imp destroyed. 20964_ Rnf. Quantum Reactor blown off. 20964_ E-15 Imp destroyed. 20965_ Acquired 6 matter. 20965_ Knocked back. 20965_ Penetrated by Slug. 20966_ Biometal Heavy Treads destroyed. 20967_ The unstable cave ceiling collapses. 20967_ P-80 Master crushed by falling debris. 20967_ P-80 Master resets P-80 Master, system corruption cleaned. 20967_ Core Membrane filtered system corruption (1). X0-1V1's Piety Tracker suddenly appears amidst shimmering waves of color. 20968_ Core Membrane filtered system corruption (1). 20968_ X0-1V1 snickers! Map ----- +----------------------------------------------------+ | " # ## # ### | | ##+## # #####+?# # # # % # # | | ????##### #??????# " # ## | | ????????# #?!????# += # %### ## " | | ????????# #??????# /%* ## " | | ????????# #??????# #?##" !=!% " | | ????????# #??*???# ## " "" " | | ????????# ######## "" "%" "%%%!#/ "" " | | ????????# % " "%" [%! " " | | ????????# #######""""" " "%=| """" | | ?????##?# #?????? ### !#% % [""" | | ?????# ## #?????? "";; ; p !|%* * | | ??????# # #?????? " p ! i=[= ! | | ???????#" #?????? " p | | ????????# ####;#""""" pp !p! | | ????????# # """ pKp| | | ?????=??# # """ K p | | ???????*# # """ ;T p%! | | ????????# # """ ;"" %=] | | ????????+ + R" ;"" !=%% ;;;"" | | ????????# # """ ;" =%% ; " | | ????????# ; "" ; *= ;;;; " | | ????????# ; ; % =; ; " | | ????????# ; ; % ; ; ; | | ????????# ;;;;;;;;;;%;;;%;;;;;;;; ; ; | | ????????# o % @ % ; ; ; | | ????????# ; ; ; | | ######### ;;;;;;;;;;;;;;;;;; ;;;[;;;;+" | | ] # ; ;;;;;;;;;;; ; E " # | | ! + ; ; ] ! ! ; ;% =" # | | [ # # ; ; ; " # | | == # # ; % ; ; """ " #? | | [[% # # ; + + """" " #? | | =# #? ; ; ; """" " ##? | | # #? ; !! ; ; """" " #?? | | " " ####?? ; !! ; ; " ##?? | | ""R"" #????? ; ! ; + " ##??? | | """"" #??????? ;;;;;;;;;;;+"";;;?""""" ##???? | | #????????? ; ! " ?? ##????? | | #???????????? ; "" "??" ##?????? | | ###"#####??????????????;= ?" ???? ##??????? | | ?# ##??????????????????????? ??" ???? #????????? | | # #???????????????????????????? ?????#?????????? | | ##?????????????????????????????????????????????? | | ???????????????????????????????????????????????? | | ???????????????????????????????????????????????? | | ???????????????????????????????????????????????? | | ???????????????????????????????????????????????? | | ????????????????????????????!??]???????????????? | | ??????????????????????????????????=????????????? | +----------------------------------------------------+ Best States ------------- Heat Dissipation 208 Energy Generation 149 Energy Capacity 2720 Matter Stores 1000 Matter Capacity 1000 Sight Range 25 Robot Scan Range 20 Terrain Scan Density 10 Jamming Range 14 Power Amplification 60 Corruption Containment 20 Armor Coverage 2700 Resistance: KI 10 Resistance: TH 36 Resistance: EX 75 Utility Shielding 66 Phase Shifting 15 Evasion (%) 84 Targeting Accuracy 22 Target Analysis 8 Core Analysis 8 Recoil Reduction 2 Particle Charging 50 Offensive Hacking 20 Defensive Hacking 10 Item Schematics ----------------- Assault Drone Bay | -4/Zhirov | Free Exp. Heat Sink | -4/Zhirov | Free Exp. Optical Array | -4/Zhirov | Free Imp. Arc Thrower | -4/Zhirov | Free Cld. Plasma Rifle | -3/Quarantine | Archive Hds. Centrium Heavy Treads | -2/Testing | Archive Robot Schematics ------------------ R-10 Processor | -2/Testing | Archive C-55 Analyst | -2/Testing | Archive Fabricated ------------ Nothing Repaired ---------- Nothing Studied --------- Enh. Nova Cannon | -3/Research | Hacked Com. HERF Cannon | -3/Quarantine | Hacked Quantum Reactor | -2/Research | Hacked Alien Tech Used ----------------- Integrated Dissipator Phase Armor Integrated Reactor Core Membrane Integrity Redistributor Dimensional Node Initializer Core Expander LRC Energy Well Transdimensional Reconstructor Integrated Thermoelectric Network Core Physics Calibrator High-powered Transdimensional Reconstructor Emergency Decompositor Terrabomb Subatomic Replicator Achievements -------------- None Challenges ------------ None Game ------ Seed PulseAssemblyMantle Manual? 0 Play Time 03:50:57 Cumulative 546.8 hours Start 2026.09.15 @ 17:05:23 End 2026.09.15 @ 22:50:51 Sessions 1 Manual Loads 0 Difficulty Rogue Special Mode None Game No. 210 Rogue 210 Adventurer 0 Explorer 0 Win Type - Total 22 Types 5/0/11/0/1/0/2/1/1/1 Lore% 83 Gallery% 86 Achievement% 79 Wizard Run 0 Options --------- Layout 1 ASCII 0 Keyboard 1 Movement Arrows Keybinds 0 Fullscreen 1 Font 24/Smallcaps Map View 50x35 Zoom Use 0% Tactical HUD 1 Map Filters NONE Filters NONE Steam 1 RUN: 585e0b9f-70ed-4857-afec-3e70168eb1c3